Cogmind - Beta 13 @@@ ROGUE MODE // 2024.04.14 @ 21:53:01 Player: maddiematics Result: Destroyed by Y-45 Defender with Beam Rifle Performance ------------- Evolutions (1) 500 Regions Visited (3) 600 Robots Destroyed (4) 20 Value Destroyed (117) 117 Prototype IDs (0) 0 Alien Tech Used (0) 0 Bonus (0) 0 TOTAL SCORE: 1237 Bonus ------- None Cogmind --------- Core Integrity 0/400 Matter 17/300 Energy 69/100 System Corruption 2% Temperature Cool (9) Movement Core (250) Ox4 Location -9/Materials Parts ------- > --- POWER (1) -------- (None) > --- PROPULSION (2) --- (None) > --- UTILITY (4) ------ Medium Storage Unit Sensor Array Signal Interpreter ECM Suite > --- WEAPON (2) ------- (None) > --- INVENTORY (10) --- Light Ion Engine Heavy Ion Engine Improved Flight Unit Improved Heat Sink Small Storage Unit Transport Network Coupler ECM Suite Authchip [Device] Autogun Autogun Peak State ------------ > --- POWER ------------ Improved Ion Engine > --- PROPULSION ------- Wheel > --- UTILITY ---------- Medium Storage Unit Sensor Array Signal Interpreter ECM Suite > --- WEAPON ----------- Improved Grenade Launcher Improved Grenade Launcher > --- INVENTORY -------- Light Ion Engine Heavy Ion Engine Improved Flight Unit Small Storage Unit Transport Network Coupler ECM Suite Authchip [Device] Autogun Autogun [Rating: 14] Favorites ----------- Power Ion Engine Engine Ion Engine Propulsion Wheel Leg Aluminum Leg Wheel Wheel Utility Small Storage Unit Device Sensor Array Storage Small Storage Unit Processor Signal Interpreter Weapon Autogun Ballistic Gun Autogun Launcher Improved Grenade Launcher Build | -11 -10 -10 -9 ------- Run | Yrd Mat Min Mat Slots Evolved 2 | . . . 2 Power . | . . . . Propulsion . | . . . . Utility 2 | . . . 2 Weapon . | . . . . Parts Attached 24 | 6 8 1 9 Power 2 | 1 . . 1 Engine 2 | 1 . . 1 Core . | . . . . Reactor . | . . . . Propulsion 6 | 2 4 . . Treads . | . . . . Leg 2 | . 2 . . Wheel 4 | 2 2 . . Hover . | . . . . Flight . | . . . . Utility 8 | 1 2 . 5 Device 5 | . 2 . 3 Storage 2 | 1 . . 1 Processor 1 | . . . 1 Hackware . | . . . . Protection . | . . . . Artifact . | . . . . Weapon 8 | 2 2 1 3 Energy Gun . | . . . . Energy Cannon . | . . . . Ballistic Gun 5 | 2 2 1 . Ballistic Cannon . | . . . . Launcher 3 | . . . 3 Special Weapon . | . . . . Impact Weapon . | . . . . Slashing Weapon . | . . . . Piercing Weapon . | . . . . Special Melee Weapon . | . . . . Unidentified Prototypes . | . . . . Parts Lost 7 | . . . 7 Power 1 | . . . 1 Propulsion 2 | . . . 2 Utility 1 | . . . 1 Weapon 3 | . . . 3 Highest Loss Streak 5 | . . . 5 To Critical Strikes 1 | . . . 1 Average Slot Usage (%) 95 | . 95 100 93 Engine 12 | . 14 14 10 Wheel 23 | . 28 28 18 Device 16 | . 9 14 21 Storage 12 | . 14 14 11 Processor 4 | . . . 9 Ballistic Gun 24 | . 28 28 19 Naked Turns . | . . . . Heaviest Build 32 | 13 17 17 32 Greatest Support 26 | 20 26 20 20 Greatest Overweight (x) 6 | . . . 6 Average Overweight (x) . | . . . 1 Largest Inventory Capacity 10 | 8 8 8 10 Average Capacity 8 | 7 8 8 9 Most Carried 10 | 6 8 8 10 Average Carried 7 | 3 7 7 7 Final Capacity 10 | 8 8 8 10 Final Carried 10 | 6 8 8 10 Class Distribution -------------------- 100% | Mutant Dominant Class ---------------- Mutant | -10/Materials Mutant | -10/Mines Mutant | -9/Materials Resources | -11 -10 -10 -9 ----------- Run | Yrd Mat Min Mat Matter Collected 353 | 225 41 44 43 Remotely . | . . . . Salvage Created 84 | . 41 . 43 Parts 5 | . 1 . 4 Haulers Intercepted 1 | . . . 1 Recyclers Shooed . | . . . . Parts Field Recycled . | . . . . Retrieved Matter . | . . . . Parts Self-Destructed . | . . . . Prevented . | . . . . Kills | -11 -10 -10 -9 ------- Run | Yrd Mat Min Mat Combat Hostiles Destroyed 3 | . 1 . 2 Guns 1 | . 1 . . AOE 2 | . . . 2 Classes Destroyed 2 | . 1 . 1 Hauler 1 | . . . 1 Grunt 3 | . 1 . 2 Best Kill Streak 2 | . 1 . 2 Combat Bots Only 2 | . 1 . 2 Max Kills in Single Turn 2 | . 1 . 2 Gunslinging . | . . . . Exploded 2 | . . . 2 Melee . | . . . . Uniques/NPCs Destroyed . | . . . . Combat | -11 -10 -10 -9 -------- Run | Yrd Mat Min Mat Hostile Shots Fired 133 | . 30 . 103 Missed 41 | . 12 . 29 Damage Taken 1289 | . 217 . 1072 Core 464 | . 60 . 404 Absorbed by Shields . | . . . . Core Remaining (%) 88 | 100 . 76 . Volleys Fired 18 | . 4 . 14 Largest 2 | . 2 . 2 Hottest 72 | . 46 . 72 Shots Fired 36 | . 8 . 28 Gun 26 | . 8 . 18 Cannon . | . . . . Launcher 10 | . . . 10 Special . | . . . . Kinetic 26 | . 8 . 18 Thermal . | . . . . Explosive 10 | . . . 10 Electromagnetic . | . . . . Robot Hit Streak 5 | . 5 . 4 Robot Miss Streak 1 | . 1 . 1 Penetration Max . | . . . . Secondary Targets 1 | . 1 . . Max Gunslinging Chain 1 | . 1 . . Shots Hit Robots 15 | . 6 . 9 Core Hits 10 | . 3 . 7 Critical Kills . | . . . . Critical Parts Destroyed . | . . . . Critical Strikes . | . . . . Melee Attacks . | . . . . Impact . | . . . . Slashing . | . . . . Piercing . | . . . . Sneak Attacks . | . . . . Combat Hostiles . | . . . . Follow-up Attacks . | . . . . Damage Inflicted 655 | . 99 . 556 Guns 147 | . 87 . 60 Cannons . | . . . . Explosions 496 | . . . 496 Melee . | . . . . Ramming 12 | . 12 . . Kinetic 147 | . 87 . 60 Thermal . | . . . . Explosive 496 | . . . 496 Electromagnetic . | . . . . Impact . | . . . . Slashing . | . . . . Piercing . | . . . . Highest Corruption 2 | . . . 2 Average Corruption 2 | . . . 2 Corruption Purged . | . . . . Corruption Blocked . | . . . . Effects 1 | . . . 1 Misfires 1 | . . . 1 Overload Shots . | . . . . Overflow Damage . | . . . . Projectiles . | . . . . Explosions . | . . . . Melee . | . . . . Knockbacks . | . . . . Impact . | . . . . Kinetic . | . . . . Secondary . | . . . . Self-Inflicted Damage 62 | . 6 . 56 Shots 1 | . . . 1 Rammed 1 | . 1 . . Targets Rammed 1 | . 1 . . Kicked . | . . . . Crushed . | . . . . Highest Temperature 47 | . 33 . 47 Average Temperature 13 | . 14 . 13 Received Heat Transfer 498 | . 117 . 381 Siege Activations . | . . . . Robots Corrupted . | . . . . Combat Hostiles . | . . . . Parts Fried . | . . . . Impact Corruptions . | . . . . Robots Melted . | . . . . Combat Hostiles . | . . . . Parts Melted . | . . . . Heat Transferred . | . . . . Parts Sabotaged . | . . . . Parts Stolen . | . . . . Parts Stripped . | . . . . Power Chain Reactions . | . . . . Alert | -11 -10 -10 -9 ------- Run | Yrd Mat Min Mat Peak Influence 124 | . 75 43 124 Initial 28 | . . 28 16 Average 29 | . 13 41 38 Maximum Alert Level . | . . . . Low Security (%) 100 | 100 100 100 100 Level 1 . | . . . . Level 2 . | . . . . Level 3 . | . . . . Level 4 . | . . . . Level 5 . | . . . . High Security . | . . . . Max Security . | . . . . Squads Dispatched 2 | . 1 . 1 Investigation . | . . . . Extermination . | . . . . Reinforcement 2 | . 1 . 1 Assault . | . . . . Garrison . | . . . . Intercept . | . . . . Searches Triggered . | . . . . Construction Impeded . | . . . . Haulers Reinforced . | . . . . Active Scanning Responses . | . . . . Cargo Convoy Interrupts . | . . . . Stealth | -11 -10 -10 -9 --------- Run | Yrd Mat Min Mat Distress Signals 5 | . 4 . 1 Communications Jammed . | . . . . Distress Signals . | . . . . Times Spotted 18 | . 9 . 9 Peak Tracking Total 7 | . 7 . 6 Tactical Retreats 1 | . . . 1 Traps | -11 -10 -10 -9 ------- Run | Yrd Mat Min Mat Traps Triggered 1 | . . . 1 Indirectly . | . . . . Trap Hack Attempts . | . . . . Triggered . | . . . . Disarmed . | . . . . Reprogrammed . | . . . . Reused . | . . . . Traps Extracted . | . . . . Installed . | . . . . Triggered . | . . . . Machines | -11 -10 -10 -9 ---------- Run | Yrd Mat Min Mat Machines Disabled . | . . . . Max in Single Turn . | . . . . Machines Repaired . | . . . . Machines Dismantled . | . . . . Machines Sabotaged . | . . . . Overloaded Fab Kills . | . . . . Hacking | -11 -10 -10 -9 --------- Run | Yrd Mat Min Mat Machines Accessed 2 | . . . 2 Terminals 2 | . . . 2 Fabricators . | . . . . Repair Stations . | . . . . Recycling Units . | . . . . Scanalyzers . | . . . . Garrison Access . | . . . . Total Hacks 5 | . . . 5 Successful 1 | . . . 1 Failed 4 | . . . 4 Catastrophic . | . . . . Database Lockouts . | . . . . Manual . | . . . . Terminals 5 | . . . 5 Fabricators . | . . . . Repair Stations . | . . . . Recycling Units . | . . . . Scanalyzers . | . . . . Garrison Access . | . . . . Terminal Hacks 1 | . . . 1 Hauler Manifests 1 | . . . 1 Fabricator Hacks . | . . . . Repair Station Hacks . | . . . . Recycling Unit Hacks . | . . . . Scanalyzer . | . . . . Garrison Access Hacks . | . . . . Unauthorized Hacks . | . . . . Terminals . | . . . . Fabricators . | . . . . Repair Stations . | . . . . Recycling Units . | . . . . Scanalyzers . | . . . . Garrison Access . | . . . . Data Cores Recovered . | . . . . Used . | . . . . Hacking Detections 1 | . . . 1 Full Trace Events . | . . . . Feedback Events . | . . . . Feedback Blocked . | . . . . Robot Schematics Acquired . | . . . . Robots Built . | . . . . Authchips . | . . . . Time . | . . . . Total Robot Build Rating . | . . . . Part Schematics Acquired . | . . . . Parts Built . | . . . . Authchips . | . . . . Time . | . . . . Total Part Build Rating . | . . . . Parts Repaired . | . . . . Time . | . . . . Parts Recycled . | . . . . Recycled Matter . | . . . . Retrieved Matter . | . . . . Retrieved Components . | . . . . Parts Scanalyzed . | . . . . Part Schematics Acquired . | . . . . Parts Damaged . | . . . . Bothacking | -11 -10 -10 -9 ------------ Run | Yrd Mat Min Mat Used RIF Installer . | . . . . Robots Hacked . | . . . . Non-combat . | . . . . Combat . | . . . . Robot Hacks Applied . | . . . . Relay Couplers Released . | . . . . Fabnet Peak Effective % . | . . . . Robots Rewired . | . . . . Allies Hacked . | . . . . Hacks Repelled . | . . . . Allies | -11 -10 -10 -9 -------- Run | Yrd Mat Min Mat Total Allies . | . . . . Largest Group . | . . . . Highest-Rated Group . | . . . . Highest-Rated Ally . | . . . . Total Orders . | . . . . Ally Attacks . | . . . . Total Damage . | . . . . Kills . | . . . . Allies Corrupted . | . . . . Allies Melted . | . . . . Intel | -11 -10 -10 -9 ------- Run | Yrd Mat Min Mat Robot Analysis Total . | . . . . Derelict Logs Recovered 1 | . . 1 . Drone Launches . | . . . . Drone Recoveries . | . . . . Exploration | -11 -10 -10 -9 ------------- Run | Yrd Mat Min Mat Turns Passed 812 | 68 226 179 339 Spaces Moved 793 | 67 226 219 281 Core 7 | 2 . . 5 Treads . | . . . . Legs . | . . . . Wheels 786 | 65 226 219 276 Hover . | . . . . Flight . | . . . . Fastest Speed 50 | 50 80 80 80 Average Speed 86 | 79 80 80 98 Slowest Speed 350 | 80 80 80 350 Overloaded Moves . | . . . . Propulsion Burnouts . | . . . . Robots Hopped . | . . . . Cave-ins Triggered . | . . . . Exploration Rate (%) 28 | 5 43 44 22 Regions Visited 3 Branch Regions 1 Pre-discovered Areas . | . . . . Known Exits Taken . | . . . . Unknown Exits Taken 3 | 1 1 1 . Scrap Searched 2 | . . 2 . Spaces Dug . | . . . . Terrain Destroyed 82 | . . . 82 Melee . | . . . . Projectile . | . . . . AOE 82 | . . . 82 Terrain Rammed . | . . . . Walls Destroyed . | . . . . Machines Disabled . | . . . . Actions | -11 -10 -10 -9 --------- Run | Yrd Mat Min Mat Total 886 | 78 265 223 320 Wait 13 | . 9 . 4 Move 790 | 66 225 218 281 Hop . | . . . . Pick Up 25 | 6 9 2 8 Fast Attach 11 | 6 3 . 2 Attach 5 | . 1 1 3 Detach . | . . . . Swap 8 | . 4 . 4 Drop 15 | . 9 2 4 Fire 18 | . 4 . 14 Melee . | . . . . Ram 1 | . 1 . . Kick . | . . . . Crush . | . . . . Escape Stasis . | . . . . Rewire . | . . . . Trap . | . . . . Miscellaneous . | . . . . Route ------- -11/Scrapyard -10/Materials -10/Mines -9/Materials History --------- Turn | Location | Event 26 | -11/Scrapyard | Discovered new exit (range 15) 69 | -11/Scrapyard | Entered Materials 278 | -10/Materials | Discovered new exit (range 14) 295 | -10/Materials | Entered Mines 304 | -10/Mines | Build established: Mutant 317 | -10/Mines | Learned Materials stockpile data 396 | -10/Mines | Discovered new exit (range 6) 474 | -10/Mines | Entered Materials 474 | -9/Materials | Evolved 2 slots: Utility x2 801 | -9/Materials | Core integrity fell below 50% 808 | -9/Materials | Core integrity fell below 20% 813 | -9/Materials | Destroyed by Y-45 Defender with Beam Rifle Last Messages --------------- Acquired Imp. Grenade Launcher. G-34 Mercenary destroyed. Imp. Grenade Launcher destroyed. The unstable cave ceiling collapses. Acquired Imp. Grenade Launcher. Imp. Ion Engine destroyed. The unstable cave ceiling collapses. Acquired Imp. Heat Sink. The unstable cave ceiling collapses. Critical hit (Burn: +37). The unstable cave ceiling collapses. Wheel destroyed. Imp. Grenade Launcher destroyed. System corrupted: FCS attempts to trigger Imp. Grenade Launcher. System corrupted: Imp. Grenade Launcher misfires. The unstable cave ceiling collapses. Critical hit (Destroy). Imp. Grenade Launcher destroyed. The unstable cave ceiling collapses. Critical hit (Burn: +37). Map ----- +----------------------------------------------------+ | | | | | | | | | | | | | ?????????????????????????????????????????????????? | | ?????????????????????????????????????????????????? | | ?????????????????????????????????????????????????? | | ?????????????????????????????????????????????????? | | ?????????????????????????????????????????????????? | | ?????????????????????????????????????????????????? | | ?????????????????????????????????????????????????? | | ?????????????????????????????????????????????????? | | ?????????????????????????????????????????????????? | | ?????????????????????######??????????????????????? | | ???????????????????### ??????????????????????? | | ???????????????????? ??????????????????????? | | ????????????????????? ??????????????????????? | | ????????????????????? ??????????????????????? | | ?????????????????????? ??????????????????????? | | ??????????????????????# #??? ?????????????????? | | ??????????????????????# #??""""????????????????? | | ??????????????????##### r##?"""""???????????????? | | ??????????????????# # """"" #?????????????? | | ??????????????????# @ # ???????????????? | | ??????????????????# ##???????????????????? | | ??????????????????# # ##??????????????????? | | ??????????????????## # Y ] ##?????????????????? | | ?????????????????????# ][ #?????????????????? | | ?????????????????????## ! #?????????????????? | | ?????????????????????## !##?????????????????? | | ???????????????????# !#??????????????????? | | ???????????????????# # !#??????????????????? | | ??????????????????# # ##??????????????????? | | ??????????????????# # ???????????????????? | | ??????????????????## # #??????????????????? | | ??????????????????# ## ##??????????????????? | | ??????????????????### #???????????????????? | | ????????????????????# Y ##???????????????????? | | ????????????????????### Y ?????????????????????? | | ?????????????????????# ?????????????????????? | | ?????????????????????# ##?????????????????????? | | ?????????????????????## #??????????????????????? | | ??????????????????????# #??????????????????????? | | ??????????????????????# #??????????????????????? | | ??????????????????????# #??????????????????????? | | ??????????????????????# #??????????????????????? | | ??????????????????????# #?????????????!????????? | | ??????????????????????### #??????????????????????? | +----------------------------------------------------+ Best States ------------- Heat Dissipation 28 Energy Generation 12 Energy Capacity 265 Matter Stores 265 Matter Capacity 300 Sight Range 16 Robot Scan Range 14 Terrain Scan Density 10 ECM Strength 2 Additional Mass Support 6 Evasion (%) 44 Authchip Count 1 Item Schematics ----------------- None Robot Schematics ------------------ None Fabricated ------------ Nothing Alien Tech Used ----------------- None Achievements -------------- None Challenges ------------ None Game ------ Seed SapperIonMace Manual? 0 Play Time 00:16:37 Cumulative 3.1 hours Start 2024.04.14 @ 21:39:02 End 2024.04.14 @ 21:53:01 Sessions 1 Manual Loads 0 Difficulty Rogue Special Mode None Game No. 9 Rogue 9 Adventurer 0 Explorer 0 Win Type - Total 0 Types 0/0/0/0/0/0/0/0/0 Lore% 4 Gallery% 7 Achievement% 8 Wizard Run 0 Options --------- Layout 1 ASCII 0 Keyboard 0 Movement Vi Keybinds 0 Fullscreen 1 Font 32/Terminus Map View 77x35 Zoom Use 0% Tactical HUD 0 Map Filters NONE Filters NONE Steam 1 RUN: 6e6054a7-d96e-4f36-927f-c90a6b906b64